bitfinex/quotes_BTCUSD_20220306
["timestamp","ask_amount","ask_price","bid_price","bid_amount"]
[1646554228765,0.37386181,39311.0,39305.0,0.40970548]
[1646554231212,0.20740592,39310.0,39305.0,0.20857595]
[1646554231813,0.20740592,39310.0,39304.0,0.2636806]
[1646554232013,0.20740592,39310.0,39305.0,0.20857595]
[1646554232413,0.20740592,39310.0,39304.0,0.20857595]
[1646554232615,0.20740592,39310.0,39305.0,0.20857595]
[1646554233064,0.20740592,39310.0,39304.0,0.20857595]
[1646554233263,0.20740592,39310.0,39305.0,0.20857595]
[1646554233462,0.20740592,39310.0,39303.0,0.18838937]
[1646554233463,0.20740592,39310.0,39304.0,0.20857595]
[1646554234264,0.50740592,39310.0,39304.0,0.20857595]
[1646554234467,0.20740592,39309.0,39303.0,0.20967595]
[1646554235766,0.2084597,39309.0,39303.0,0.20967595]
[1646554236605,0.20880033,39309.0,39304.0,0.20860735]
[1646554236811,0.00105378,39309.0,39304.0,0.20860735]
[1646554237209,0.00105378,39309.0,39307.0,0.21337063]
[1646554238606,0.00105378,39309.0,39305.0,0.20860735]
[1646554239605,0.00105378,39309.0,39305.0,0.40564049]
[1646554240205,0.00105378,39309.0,39305.0,0.20860735]
[1646554241265,0.21521063,39307.0,39305.0,0.20860735]
[1646554241663,0.67338319,39313.0,39309.0,0.21201076]
[1646554241664,0.25968319,39312.0,39309.0,0.21201076]
[1646554241863,0.20770923,39310.0,39309.0,0.21201076]
[1646554242664,0.58993223,39310.0,39309.0,0.21201076]
[1646554242864,0.682223,39310.0,39309.0,0.21201076]
[1646554243365,0.3,39310.0,39309.0,0.21201076]
[1646554243563,0.25968319,39312.0,39309.0,0.21201076]
[1646554243564,0.25968319,39311.0,39309.0,0.21201076]
[1646554243968,0.55968319,39312.0,39309.0,0.21201076]
[1646554244217,0.25968319,39311.0,39309.0,0.21201076]
[1646554244619,0.3,39312.0,39309.0,0.21201076]
[1646554244620,0.55968319,39312.0,39309.0,0.21201076]
[1646554244818,0.20772036,39310.0,39309.0,0.21201076]
[1646554245219,0.20772036,39311.0,39309.0,0.21201076]
[1646554247856,0.20972036,39312.0,39309.0,0.21201076]
[1646554248063,0.20772036,39311.0,39309.0,0.21201076]
[1646554251365,0.20772036,39310.0,39309.0,0.21201076]
[1646554254417,0.26168319,39312.0,39309.0,0.21201076]
[1646554254418,0.20772036,39311.0,39309.0,0.21201076]
[1646554254714,0.20772036,39310.0,39309.0,0.21201076]
[1646554258368,0.1908,39323.0,39312.0,0.7]
[1646554258575,0.0002183,39324.0,39322.0,0.3]
[1646554258772,0.0002183,39324.0,39322.0,0.21826]
[1646554258969,0.0002183,39324.0,39323.0,0.11826959]
[1646554259212,0.06562223,39332.0,39322.0,0.21826]
[1646554259418,0.06562223,39331.0,39328.0,0.16346412]
[1646554259614,0.01271,39336.0,39328.0,0.16346412]
[1646554259811,0.04405089,39335.0,39328.0,0.16346412]
[1646554260210,0.04405089,39335.0,39323.0,0.3]
[1646554260411,0.04405089,39335.0,39323.0,0.15182943]
[1646554260610,0.06943089,39335.0,39322.0,0.0539]
[1646554260811,0.02538,39335.0,39322.0,0.0539]
[1646554261009,0.02538,39335.0,39322.0,0.0509]
[1646554261509,0.204821,39337.0,39322.0,0.0509]
[1646554261510,0.02538,39333.0,39322.0,0.0509]
[1646554261710,0.02538,39336.0,39322.0,0.0509]
[1646554261911,0.02538,39334.0,39322.0,0.0509]
[1646554262311,0.192111,39337.0,39322.0,0.0509]
[1646554262512,0.0259474,39336.0,39326.0,0.17071975]
[1646554262716,0.19791962,39337.0,39328.0,0.15529402]
[1646554262967,0.00021813,39331.0,39326.0,0.17071975]
[1646554263166,0.00021813,39331.0,39328.0,0.0509]
[1646554263967,0.3,39338.0,39328.0,0.0509]
[1646554264170,0.00022626,39331.0,39328.0,0.0509]
[1646554264568,0.1851,39340.0,39330.0,0.29301185]
[1646554264772,0.1851,39340.0,39330.0,0.17875736]
[1646554264968,0.4168,39346.0,39331.0,0.0509]
[1646554264969,0.1168,39346.0,39331.0,0.0509]
[1646554265168,0.01271,39350.0,39341.0,0.17245018]
[1646554265374,0.02821382,39349.0,39341.0,0.22335018]
[1646554265568,0.36317432,39350.0,39341.0,0.22335018]
[1646554265773,0.36317432,39350.0,39343.0,0.7746]
[1646554265967,0.36317432,39351.0,39344.0,0.3509]
[1646554266169,0.36317432,39354.0,39349.0,0.20855874]
[1646554266372,0.02976503,39356.0,39350.0,0.3509]
[1646554266373,0.36317432,39356.0,39350.0,0.3509]
[1646554266617,0.17543069,39357.0,39350.0,0.3509]
[1646554266818,0.17543069,39357.0,39350.0,0.0509]
[1646554267024,0.3,39356.0,39350.0,0.0509]
[1646554267218,0.32538,39356.0,39350.0,0.0509]
[1646554267423,0.02538,39355.0,39346.0,0.002]
[1646554267718,0.3,39356.0,39346.0,0.002]
[1646554267719,0.407603,39354.0,39346.0,0.002]
[1646554267920,0.02538,39350.0,39346.0,0.002]
[1646554268119,0.20158086,39347.0,39346.0,0.002]
[1646554268318,0.02538,39350.0,39346.0,0.002]
[1646554268516,0.3,39353.0,39346.0,0.002]
[1646554268719,0.17486125,39351.0,39338.0,0.0509]
[1646554268919,0.3,39350.0,39338.0,0.0509]
[1646554269119,0.30023388,39350.0,39338.0,0.0509]
[1646554269322,0.30023388,39350.0,39345.0,0.21294426]
[1646554269620,0.00023388,39350.0,39345.0,0.21294426]
[1646554270029,0.3,39356.0,39345.0,0.21294426]
[1646554270223,0.00023388,39349.0,39345.0,0.21294426]
[1646554271269,0.20880672,39352.0,39345.0,0.21294426]
[1646554271468,0.00023388,39349.0,39345.0,0.21294426]
[1646554272472,0.31269,39360.0,39345.0,0.21294426]
[1646554272773,0.00022599,39349.0,39345.0,0.21294426]
[1646554272970,0.00022599,39349.0,39346.0,0.18022401]
[1646554273372,0.17622776,39357.0,39353.0,0.20170224]
[1646554273572,0.17622776,39357.0,39349.0,0.00045197]
[1646554273773,0.3,39356.0,39349.0,0.00045197]
[1646554274612,0.3,39356.0,39350.0,0.19103196]
[1646554275419,0.22534759,39361.0,39350.0,0.19103196]
[1646554275617,0.19996759,39361.0,39350.0,0.19103196]
[1646554275919,0.382223,39362.0,39350.0,0.19103196]
[1646554276316,0.00089852,39351.0,39350.0,0.19103196]
[1646554276921,0.00089852,39351.0,39350.0,0.49103196]
[1646554277124,0.00089852,39351.0,39350.0,0.60284615]
[1646554277320,0.00089852,39351.0,39350.0,0.65374615]
[1646554277720,0.00089852,39351.0,39350.0,0.65373762]
[1646554277961,0.00089852,39351.0,39350.0,0.6537362]
[1646554278164,0.00089852,39351.0,39350.0,1.4283362]
[1646554278358,0.00089852,39351.0,39350.0,0.6537362]
[1646554279562,0.00089852,39351.0,39350.0,0.3537362]
[1646554280163,0.00089852,39351.0,39350.0,0.19103196]
[1646554281365,0.00089852,39351.0,39350.0,0.19211089]
[1646554283417,0.00089852,39351.0,39350.0,0.49211089]
[1646554283917,0.00089852,39351.0,39350.0,0.19211089]
[1646554286160,0.00089852,39351.0,39350.0,0.00107893]
[1646554286860,0.00089852,39351.0,39349.0,0.00045197]
[1646554287260,0.2004039,39351.0,39349.0,0.00045197]
[1646554287660,0.00089852,39351.0,39349.0,0.00045197]
[1646554291216,0.00089852,39351.0,39350.0,0.19640857]
[1646554291412,0.00089852,39351.0,39350.0,0.49640857]
[1646554292411,0.00089852,39351.0,39350.0,0.3509]
[1646554293061,0.00089852,39351.0,39349.0,0.00045197]
[1646554295573,0.382223,39350.0,39349.0,0.00045197]
[1646554295766,0.3509,39350.0,39349.0,0.00045197]
[1646554295967,0.733123,39350.0,39349.0,0.00045197]
[1646554296174,0.733123,39350.0,39349.0,0.00037805]
[1646554296368,0.80593599,39350.0,39349.0,0.00037805]
[1646554296615,0.98131599,39350.0,39349.0,0.00037805]
[1646554297015,0.99400599,39350.0,39349.0,0.00037805]
[1646554299814,1.04400599,39350.0,39349.0,0.00037805]
[1646554300217,1.67970599,39350.0,39349.0,0.00037805]
[1646554300461,1.67970599,39350.0,39349.0,8.05e-06]
[1646554300462,1.606893,39350.0,39349.0,8.05e-06]
[1646554300857,1.63263851,39350.0,39349.0,8.05e-06]
[1646554301266,3.75713851,39350.0,39349.0,8.05e-06]
[1646554301462,0.20908525,39324.0,39321.0,0.39461576]
[1646554301659,0.20908525,39324.0,39323.0,0.00084117]
[1646554301863,0.59130825,39324.0,39323.0,0.00084117]
[1646554302561,0.382223,39323.0,39321.0,0.2]
[1646554302758,0.382223,39323.0,39315.0,0.20325208]
[1646554303059,0.32538,39323.0,39315.0,0.20325208]
[1646554303259,0.0509,39322.0,39315.0,0.20325208]
[1646554303458,0.32538,39323.0,39315.0,0.20325208]
[1646554303657,0.37628,39323.0,39310.0,0.0021]
[1646554304535,0.37628,39323.0,39311.0,0.19186001]
[1646554304937,0.382223,39322.0,39314.0,0.15779644]
[1646554305137,0.3,39321.0,39314.0,0.15779644]
[1646554306239,0.3,39321.0,39316.0,0.0002183]
[1646554306442,0.382223,39320.0,39316.0,0.0002183]
[1646554306638,0.07628,39323.0,39316.0,0.0002183]
[1646554306639,0.382223,39317.0,39316.0,0.0002183]
[1646554307338,0.02503,39318.0,39314.0,0.15779644]
[1646554307539,0.02503,39318.0,39315.0,0.00022209]
[1646554308565,0.02503,39318.0,39314.0,0.15779644]
[1646554308768,0.02503,39318.0,39315.0,0.00022209]
[1646554309765,0.02503,39318.0,39314.0,0.15779644]
[1646554310071,0.02503,39318.0,39315.0,0.00022209]
[1646554310867,0.02503,39318.0,39314.0,0.16179644]
[1646554311715,0.00123192,39322.0,39314.0,0.16179644]
[1646554311917,0.02503,39318.0,39316.0,0.15243133]
[1646554312118,0.02503,39318.0,39314.0,0.16179644]
[1646554312316,0.02503,39318.0,39314.0,0.15779644]
[1646554313115,0.02503,39318.0,39316.0,0.18657362]
[1646554315768,0.02503,39318.0,39315.0,0.004]
[1646554315970,0.02503,39318.0,39315.0,0.00422193]
[1646554316169,0.02503,39318.0,39315.0,0.00022193]
[1646554316369,0.0012252,39317.0,39315.0,0.00022193]
[1646554316971,0.0012252,39317.0,39316.0,0.16042551]
[1646554317572,0.31271,39329.0,39317.0,0.35229475]
[1646554317774,0.01271,39329.0,39317.0,0.35229475]
[1646554317972,0.37538,39331.0,39317.0,0.00229475]
[1646554318174,0.20374292,39326.0,39317.0,0.00229475]
[1646554318375,0.3,39325.0,39320.0,0.00021735]
[1646554318573,0.3,39330.0,39323.0,0.18045213]
[1646554318974,0.002,39327.0,39323.0,0.18045213]
[1646554319631,0.302,39327.0,39323.0,0.18045213]
[1646554320233,0.382223,39326.0,39323.0,0.18045213]
[1646554321537,0.004,39327.0,39323.0,0.18045213]
[1646554322140,0.02503,39325.0,39323.0,0.18045213]
[1646554322539,0.02503,39325.0,39324.0,0.16574765]
[1646554325875,0.02503,39325.0,39323.0,0.18645213]
[1646554326076,0.02503,39325.0,39323.0,0.28645213]
[1646554326275,0.02503,39325.0,39323.0,0.28045213]
[1646554326921,0.02503,39325.0,39324.0,0.17745677]
[1646554329323,0.02503,39325.0,39324.0,0.20283677]
[1646554329923,0.02503,39325.0,39324.0,0.97743677]
[1646554330368,0.02503,39325.0,39324.0,0.20283677]
[1646554333373,0.12631,39341.0,39337.0,0.03365672]
[1646554333575,0.382223,39340.0,39337.0,0.03365672]
[1646554333774,0.18109675,39338.0,39337.0,0.03365672]
[1646554333973,0.56331975,39338.0,39337.0,0.03365672]
[1646554334213,0.382223,39338.0,39337.0,0.03365672]
[1646554334716,0.682223,39338.0,39337.0,0.03365672]
[1646554335311,0.87766739,39338.0,39337.0,0.03365672]
[1646554337012,0.57766739,39338.0,39337.0,0.03365672]
[1646554340665,0.57766739,39338.0,39337.0,0.03662349]
[1646554340868,0.382223,39338.0,39337.0,0.03662349]
[1646554348974,0.682223,39338.0,39337.0,0.03662349]
[1646554354690,0.382223,39338.0,39337.0,0.03662349]
[1646554355489,0.382223,39338.0,39337.0,0.23256134]
[1646554356937,0.682223,39338.0,39337.0,0.03662349]
[1646554357137,0.382223,39338.0,39337.0,0.03662349]
[1646554357534,0.682223,39338.0,39337.0,0.03662349]
[1646554357735,0.382223,39338.0,39337.0,0.03653408]
[1646554358335,0.682223,39338.0,39337.0,0.03653408]
[1646554358938,0.382223,39338.0,39337.0,0.03653408]
[1646554360969,0.356723,39338.0,39337.0,0.03653408]
[1646554363472,0.3,39343.0,39338.0,0.19938189]
[1646554363673,0.382226,39342.0,39338.0,0.19938189]
[1646554363873,0.382226,39340.0,39338.0,0.19938189]
[1646554364924,0.16549342,39339.0,39338.0,0.19938189]
[1646554365124,0.54771942,39339.0,39338.0,0.19938189]
[1646554365727,0.382226,39339.0,39338.0,0.19938189]
[1646554370469,0.382226,39339.0,39338.0,0.19438189]
[1646554370671,0.38211166,39339.0,39338.0,0.19438189]
[1646554374830,0.57333441,39339.0,39338.0,0.19438189]
[1646554375233,0.38211166,39339.0,39338.0,0.19438189]
[1646554376269,0.3835276,39339.0,39338.0,0.19438189]
[1646554380621,0.3835276,39339.0,39338.0,0.19895415]
[1646554380820,0.00141594,39339.0,39338.0,0.19895415]
[1646554381621,0.00141594,39339.0,39338.0,0.40646932]
[1646554381819,0.00141594,39339.0,39338.0,0.19895415]
[1646554382620,0.00141594,39339.0,39338.0,0.58117815]
[1646554383091,0.00141594,39339.0,39338.0,0.6489375]
[1646554383294,0.00141594,39339.0,39338.0,0.90833146]
[1646554383496,0.00141594,39339.0,39338.0,0.6489375]
[1646554383895,1.594e-05,39339.0,39338.0,1.53115815]
[1646554384100,0.1128,39354.0,39341.0,0.407604]
[1646554384292,0.1128,39354.0,39343.0,0.20837233]
[1646554384494,0.00021278,39351.0,39344.0,0.377224]
[1646554385094,0.00021278,39351.0,39348.0,0.16441502]
[1646554385293,0.18653388,39354.0,39343.0,0.377475]
[1646554385495,0.18653388,39354.0,39341.0,0.1224]
[1646554385496,0.3,39353.0,39341.0,0.1224]
[1646554385694,0.00020199,39351.0,39341.0,0.1224]
[1646554386097,0.00020199,39351.0,39343.0,0.16389678]
[1646554386395,0.00020199,39351.0,39345.0,0.16917869]
[1646554386622,0.18653388,39354.0,39345.0,0.16417869]
[1646554386826,0.1174,39357.0,39351.0,0.15971351]
[1646554387022,0.382199,39356.0,39351.0,0.15971351]
[1646554387920,0.00020211,39355.0,39351.0,0.15971351]
[1646554388924,0.382199,39354.0,39351.0,0.15971351]
[1646554389121,0.17445662,39355.0,39351.0,0.15971351]
[1646554389321,0.382199,39354.0,39351.0,0.15971351]
[1646554389523,0.17445662,39355.0,39351.0,0.15971351]
[1646554390121,0.31269,39361.0,39351.0,0.15971351]
[1646554390377,0.00020303,39355.0,39351.0,0.15971351]
[1646554391374,0.01269,39361.0,39351.0,0.15971351]
[1646554391579,9.088e-05,39355.0,39352.0,0.3]
[1646554391777,9.088e-05,39355.0,39351.0,0.15971351]
[1646554392178,9.088e-05,39355.0,39352.0,0.3]
[1646554392378,9.088e-05,39355.0,39354.0,0.19334296]
[1646554392580,0.184,39363.0,39354.0,0.3]
[1646554392779,0.382199,39363.0,39359.0,0.21452322]
[1646554393579,0.17149677,39361.0,39359.0,0.21452322]
[1646554393781,0.382199,39360.0,39347.0,0.4252008]
[1646554393979,0.17149677,39361.0,39348.0,0.37742]
[1646554394220,0.00021133,39363.0,39349.0,0.3]
[1646554394817,0.00021133,39363.0,39349.0,0.299]
[1646554395018,0.03807,39366.0,39356.0,0.18833189]
[1646554395219,0.00021134,39358.0,39356.0,0.18833189]
[1646554396220,0.382199,39360.0,39356.0,0.18833189]
[1646554396425,0.00021106,39359.0,39356.0,0.18833189]
[1646554397319,0.19782154,39361.0,39356.0,0.18833189]
[1646554397519,0.00020215,39359.0,39356.0,0.18833189]
[1646554398574,0.02538,39366.0,39356.0,0.18833189]
[1646554398775,0.00020215,39359.0,39356.0,0.18833189]
[1646554399781,0.13429,39367.0,39357.0,0.677326]
[1646554399982,0.00020247,39359.0,39357.0,0.3]
[1646554400178,0.00020247,39359.0,39358.0,0.57087969]
[1646554401077,0.1216,39367.0,39364.0,0.18161616]
[1646554401278,0.16850496,39368.0,39358.0,0.19357069]
[1646554402419,0.16850496,39368.0,39363.0,0.16110306]
[1646554402420,0.00020306,39365.0,39363.0,0.16110306]
[1646554403220,0.00020306,39365.0,39358.0,0.00443514]
[1646554403421,0.16850496,39368.0,39358.0,0.00443514]
[1646554403620,9.101e-05,39366.0,39358.0,0.00443514]
[1646554404020,0.382199,39365.0,39358.0,0.00443514]
[1646554404224,0.17159707,39363.0,39358.0,0.00443514]
[1646554404423,0.49231504,39362.0,39358.0,0.00443514]
[1646554404625,0.382199,39361.0,39358.0,0.00443514]
[1646554404823,0.492406,39362.0,39358.0,0.00443514]
[1646554405026,0.55460828,39362.0,39358.0,0.00443514]
[1646554405232,0.382199,39361.0,39358.0,0.00443514]
[1646554405688,0.192406,39362.0,39358.0,0.00443514]
[1646554405887,0.19231504,39362.0,39358.0,0.00443514]
[1646554406085,9.096e-05,39361.0,39358.0,0.00443514]
[1646554406887,0.19231504,39362.0,39358.0,0.00443514]
[1646554407293,0.0002184,39361.0,39358.0,0.00443514]
[1646554408291,0.382199,39365.0,39358.0,0.20609396]
[1646554408492,0.00022216,39361.0,39358.0,0.20609396]
[1646554408692,0.00022216,39361.0,39358.0,0.00443514]
[1646554409421,0.2018171,39360.0,39358.0,0.00443514]
[1646554409621,0.00022216,39361.0,39358.0,0.00443514]
[1646554410621,0.0016698,39360.0,39358.0,0.00443514]
[1646554415477,0.0016698,39360.0,39359.0,0.377303]
[1646554415675,0.0016698,39360.0,39358.0,0.00443514]
[1646554418325,0.0016698,39360.0,39358.0,0.30443514]
[1646554418726,0.0016698,39360.0,39358.0,0.00434005]
[1646554418926,0.0016698,39360.0,39358.0,0.30434005]
[1646554419126,0.0016698,39360.0,39358.0,0.00434005]
[1646554419927,0.00144608,39360.0,39358.0,0.00434005]
[1646554425719,0.00020328,39361.0,39358.0,0.00434005]
[1646554426322,0.31101383,39362.0,39358.0,0.00434005]
[1646554426523,0.00020334,39361.0,39358.0,0.00434005]
[1646554427522,0.31101383,39362.0,39358.0,0.00434005]
[1646554427724,0.00020334,39361.0,39358.0,0.00434005]
[1646554428780,0.31101383,39362.0,39358.0,0.00434005]
[1646554428975,0.00020334,39361.0,39358.0,0.00434005]
[1646554429978,0.382199,39361.0,39358.0,0.00434005]
[1646554430179,0.00020333,39361.0,39358.0,0.00434005]
[1646554430781,0.00020333,39361.0,39358.0,0.00298664]
[1646554430977,0.20316834,39359.0,39358.0,0.00298664]
[1646554431381,0.00020333,39361.0,39358.0,0.00298664]
[1646554431621,0.382199,39360.0,39358.0,0.00298664]
[1646554432222,0.17569329,39360.0,39358.0,0.00298664]
[1646554432623,0.382199,39359.0,39358.0,0.00298664]
[1646554432824,0.17569329,39360.0,39358.0,0.00298664]
[1646554433025,0.382199,39359.0,39358.0,0.00298664]
[1646554433537,0.458479,39359.0,39358.0,0.00298664]
[1646554433728,0.51794577,39359.0,39358.0,0.00298664]
[1646554434126,0.50525577,39359.0,39358.0,0.002373]
[1646554436279,0.50525577,39359.0,39347.0,0.1199]
[1646554436475,0.382199,39352.0,39347.0,0.1199]
[1646554436675,0.0509,39351.0,39347.0,0.1199]
[1646554436874,0.0509,39351.0,39344.0,0.1824002]
[1646554436875,0.20769527,39349.0,39344.0,0.1824002]
[1646554437077,0.19867382,39350.0,39349.0,0.34823631]
[1646554437277,0.58087282,39350.0,39349.0,0.34823631]
[1646554440527,0.58232246,39350.0,39349.0,0.34823631]
[1646554443575,0.00144964,39350.0,39349.0,0.34823631]
[1646554446077,0.00144964,39350.0,39349.0,0.34323631]
[1646554448621,0.00144964,39350.0,39349.0,1.02065231]
[1646554449027,0.00144964,39350.0,39349.0,0.64323631]
[1646554449823,0.00144964,39350.0,39349.0,1.02065231]
[1646554450674,0.00144964,39350.0,39349.0,0.64323631]
[1646554452575,0.00144964,39350.0,39349.0,1.02065231]
[1646554453475,0.3864,39364.0,39350.0,1.127407]
[1646554453679,0.17952881,39363.0,39352.0,0.377376]
[1646554453875,0.69740034,39364.0,39351.0,0.02538]
[1646554453876,0.001,39353.0,39351.0,0.02538]
[1646554454129,0.001,39353.0,39352.0,0.377383]
[1646554454325,0.001,39353.0,39352.0,0.702763]
[1646554454526,0.001,39353.0,39352.0,0.89416292]
[1646554454928,0.001,39353.0,39352.0,1.0744193]
[1646554455125,0.17283959,39364.0,39362.0,0.20488034]
[1646554455325,0.31100034,39366.0,39362.0,0.20488034]
[1646554455525,0.382199,39365.0,39362.0,0.20488034]
[1646554455724,0.31600034,39366.0,39362.0,0.20488034]
[1646554456425,0.382199,39365.0,39362.0,0.20488034]
[1646554456630,0.31620545,39366.0,39362.0,0.20488034]
[1646554456826,0.382199,39365.0,39362.0,0.20488034]
[1646554457628,0.382199,39366.0,39362.0,0.20488034]
[1646554457874,0.00020512,39365.0,39362.0,0.20488034]
[1646554458075,0.20115815,39365.0,39362.0,0.20488034]
[1646554458474,0.382199,39364.0,39362.0,0.20488034]
[1646554458776,0.31100034,39367.0,39362.0,0.20488034]
[1646554458974,0.00020452,39365.0,39362.0,0.20488034]
[1646554459375,0.15426619,39364.0,39362.0,0.20488034]
[1646554459675,0.382199,39364.0,39362.0,0.20488034]
[1646554460174,0.31600034,39367.0,39353.0,0.4166]
[1646554460175,0.382199,39363.0,39353.0,0.4166]
[1646554460478,0.00020452,39365.0,39353.0,0.4166]
[1646554461075,0.005,39367.0,39353.0,0.4166]
[1646554461280,0.382199,39364.0,39362.0,0.17025819]
[1646554461729,0.40283373,39369.0,39362.0,0.17025819]
[1646554461928,0.382199,39368.0,39362.0,0.17025819]
[1646554462627,0.00020507,39367.0,39362.0,0.17025819]
[1646554462830,0.2079511,39365.0,39362.0,0.17025819]
[1646554463027,0.382199,39364.0,39362.0,0.17025819]
[1646554463228,0.2079511,39365.0,39362.0,0.17025819]
[1646554463427,0.382199,39364.0,39362.0,0.17025819]
[1646554464729,0.382199,39363.0,39362.0,0.17025819]
[1646554464929,0.382199,39364.0,39362.0,0.17025819]
[1646554465129,0.20815618,39365.0,39362.0,0.17025819]
[1646554465574,0.382199,39364.0,39362.0,0.17025819]
[1646554465776,0.00020508,39365.0,39362.0,0.17025819]
[1646554465977,0.005,39367.0,39362.0,0.17025819]
[1646554466177,0.00020498,39365.0,39362.0,0.17025819]
[1646554466577,0.20986805,39364.0,39362.0,0.17025819]
[1646554466780,0.382199,39363.0,39353.0,0.4166]
[1646554466983,0.20986805,39364.0,39353.0,0.4166]
[1646554467678,0.20986805,39364.0,39359.0,0.20778432]
[1646554467878,0.20986805,39364.0,39360.0,0.20717061]
[1646554468078,0.00020499,39365.0,39360.0,0.20717061]
[1646554468279,0.31114846,39368.0,39360.0,0.20717061]
[1646554468479,0.04,39369.0,39360.0,0.20717061]
[1646554468480,0.00020499,39364.0,39360.0,0.20717061]
[1646554468680,0.382199,39363.0,39360.0,0.20717061]
[1646554469329,0.00020499,39364.0,39360.0,0.20717061]
[1646554469530,0.35114846,39369.0,39360.0,0.20717061]
[1646554469727,0.000205,39363.0,39360.0,0.20717061]
[1646554470728,0.382199,39368.0,39360.0,0.20717061]
[1646554470930,0.000205,39363.0,39360.0,0.20717061]
[1646554471531,0.000205,39363.0,39361.0,0.2035325]
[1646554471928,0.382199,39364.0,39360.0,0.20717061]
[1646554472131,0.382199,39362.0,39360.0,0.20717061]
[1646554472329,0.382199,39363.0,39360.0,0.20717061]
[1646554472732,0.000205,39364.0,39353.0,0.44198]
[1646554472977,0.000205,39364.0,39357.0,0.184473]
[1646554473177,0.382199,39364.0,39357.0,0.184473]
[1646554473379,0.00020501,39360.0,39357.0,0.184473]
[1646554473578,0.382199,39364.0,39360.0,0.00041001]
[1646554475180,0.0509,39363.0,39360.0,0.00041001]
[1646554475384,0.382199,39362.0,39360.0,0.00041001]
[1646554475681,0.433099,39362.0,39360.0,0.00041001]
[1646554477528,0.60973561,39362.0,39360.0,0.00041001]
[1646554478532,0.2906795,39361.0,39360.0,0.00041001]
[1646554478741,0.758379,39361.0,39360.0,0.00041001]
[1646554478931,1.13390273,39361.0,39360.0,0.00041001]
[1646554479131,0.88483479,39361.0,39360.0,0.00041001]
[1646554479429,1.52053479,39361.0,39360.0,0.00041001]
[1646554480235,1.76944561,39361.0,39360.0,0.00041001]
[1646554482977,1.53045669,39361.0,39360.0,0.00041001]
[1646554484627,1.76940931,39361.0,39360.0,0.00041001]
[1646554485228,1.53046462,39361.0,39360.0,0.00041001]
[1646554486628,1.76942993,39361.0,39360.0,0.00041001]
[1646554487636,1.90060753,39361.0,39360.0,0.00041001]
[1646554487876,1.5379466,39361.0,39360.0,0.00041001]
[1646554488277,1.76940871,39361.0,39360.0,0.00041001]
[1646554489079,1.406769,39361.0,39360.0,0.00041001]
[1646554491481,1.381389,39361.0,39360.0,0.00041001]
[1646554491722,0.745689,39361.0,39360.0,0.00041001]
[1646554493528,1.10832871,39361.0,39360.0,0.00041001]
[1646554493728,1.09563871,39361.0,39360.0,0.00041001]
[1646554493930,1.24682675,39361.0,39360.0,0.00041001]
[1646554494131,0.85880704,39361.0,39360.0,0.00041001]
[1646554494330,1.09569255,39361.0,39360.0,0.00041001]
[1646554494929,1.12107255,39361.0,39360.0,0.00041001]
[1646554496088,1.09569255,39361.0,39360.0,0.00041001]
[1646554496790,0.732999,39361.0,39360.0,0.00041001]
[1646554496989,1.09569255,39361.0,39360.0,0.00041001]
[1646554497189,0.732999,39361.0,39360.0,0.00041001]
[1646554497590,0.771069,39361.0,39360.0,0.00041001]
[1646554497790,0.771069,39361.0,39360.0,0.00032634]
[1646554497993,0.695689,39361.0,39360.0,0.00032634]
[1646554498200,0.632099,39361.0,39360.0,0.00032634]
[1646554498393,0.89116493,39361.0,39360.0,0.00032634]
[1646554498896,0.632099,39361.0,39360.0,0.00032634]
[1646554499140,0.632099,39361.0,39360.0,0.18752675]
[1646554499339,0.382199,39361.0,39360.0,0.18752675]
[1646554506479,0.382199,39361.0,39360.0,0.00032634]
[1646554509035,0.25909651,39364.0,39360.0,0.00032634]
[1646554509335,0.84839204,39361.0,39360.0,0.00032634]
[1646554509636,0.46619304,39361.0,39360.0,0.00032634]
[1646554510776,0.84839204,39361.0,39360.0,0.00032634]
[1646554510979,0.46619304,39361.0,39360.0,0.00032634]
[1646554511178,0.84839204,39361.0,39360.0,0.00032634]
[1646554511576,0.46619304,39361.0,39360.0,0.00032634]
[1646554511777,0.84839204,39361.0,39360.0,0.00032634]
[1646554512377,0.46619304,39361.0,39360.0,0.00032634]
[1646554512979,0.84839204,39361.0,39360.0,0.00032634]
[1646554513279,0.46619304,39361.0,39360.0,0.00032634]
[1646554514124,0.84839204,39361.0,39360.0,0.00032634]
[1646554514325,0.46619304,39361.0,39360.0,0.00032634]
[1646554514530,0.84839204,39361.0,39360.0,0.00032634]
[1646554514725,0.39646708,39361.0,39360.0,0.00032634]
[1646554514926,0.23309652,39361.0,39360.0,0.00032634]
[1646554515325,0.39646708,39361.0,39360.0,0.00032634]
[1646554516626,0.77866608,39361.0,39360.0,0.00032634]
[1646554519176,0.95628516,39361.0,39360.0,0.00032634]
[1646554522149,1.25628516,39361.0,39360.0,0.00032634]
[1646554522354,1.42812516,39361.0,39360.0,0.00032634]
[1646554522649,1.96319679,39361.0,39360.0,0.00032634]
[1646554522849,1.97588679,39361.0,39360.0,0.00032634]
[1646554523049,1.61319324,39361.0,39360.0,0.00032634]
[1646554523248,1.71945717,39361.0,39360.0,0.00032634]
[1646554523449,2.02592827,39361.0,39360.0,0.00032634]
[1646554523651,1.76945876,39361.0,39360.0,0.00032634]
[1646554523855,2.40515876,39361.0,39360.0,0.00032634]
[1646554524049,2.67505479,39361.0,39360.0,0.00032634]
[1646554524250,2.92495479,39361.0,39360.0,0.00032634]
[1646554524449,2.9507003,39361.0,39360.0,0.00032634]
[1646554524649,3.0507003,39361.0,39360.0,0.00032634]
[1646554530229,2.8051403,39361.0,39360.0,0.00032634]
[1646554530731,2.68524427,39361.0,39360.0,0.00032634]
[1646554531931,2.80509482,39361.0,39360.0,0.00032634]
[1646554532980,2.95509482,39361.0,39360.0,0.00032634]
[1646554535481,2.95509482,39361.0,39360.0,0.0002571]
[1646554539129,3.45509482,39361.0,39360.0,0.0002571]
[1646554540129,3.4563172,39361.0,39360.0,0.0002571]
[1646554540782,3.45621738,39361.0,39360.0,0.0002571]
[1646554543085,3.20631738,39361.0,39360.0,0.0002571]
[1646554545429,1.02538,39360.0,39344.0,0.21461524]
[1646554545633,0.382199,39350.0,39342.0,0.00087481]
[1646554545830,0.382199,39348.0,39342.0,0.00087481]
[1646554546031,0.3509,39349.0,39348.0,0.1737464]
[1646554546032,0.733115,39349.0,39348.0,0.1737464]
[1646554546231,0.433115,39349.0,39348.0,0.1737464]
[1646554547635,0.733115,39349.0,39348.0,0.1737464]
[1646554550486,0.73432127,39349.0,39348.0,0.1737464]
[1646554551089,0.96741779,39349.0,39348.0,0.1737464]
[1646554551290,1.13078835,39349.0,39348.0,0.1737464]
[1646554555780,0.83078835,39349.0,39348.0,0.1737464]
[1646554557685,1.13078835,39349.0,39348.0,0.1737464]